fUSD/lending_fUSD_20240408
["ID","MTS","AMOUNT","RATE_DAILY","PERIOD"]
[321848955,1712563840408,-500.0,0.00020999,2]
[321848956,1712563840417,-500.0,0.00020999,2]
[321848957,1712563840426,-500.0,0.00020999,2]
[321848958,1712563840435,-500.0,0.00020999,2]
[321848959,1712563840444,-500.0,0.00020999,2]
[321848960,1712563840453,-500.0,0.00020999,2]
[321848961,1712563840462,-500.0,0.00020999,2]
[321848962,1712563840472,-500.0,0.00020999,2]
[321848963,1712563840481,-500.0,0.00020999,2]
[321848964,1712563840490,-500.0,0.00020999,2]
[321848965,1712563840506,-550.30239353,0.00020999,2]
[321848966,1712563840516,-500.0,0.00020999,2]
[321848967,1712563840525,-500.0,0.00020999,2]
[321848968,1712563840534,-500.0,0.00020999,2]
[321848969,1712563840544,-500.0,0.00020999,2]
[321848970,1712563840555,-500.0,0.00020999,2]
[321848971,1712563840564,-500.0,0.00020999,2]
[321848972,1712563840573,-592.01584102,0.00020999,2]
[321848973,1712563840584,-500.0,0.00020999,2]
[321848974,1712563840593,-500.0,0.00020999,2]
[321848975,1712563840603,-500.0,0.00020999,2]
[321848976,1712563840612,-500.0,0.00020999,2]
[321848977,1712563840621,-500.0,0.00020999,2]
[321848978,1712563840631,-500.0,0.00020999,2]
[321848979,1712563840641,-500.0,0.00020999,2]
[321848980,1712563840650,-500.0,0.00020999,2]
[321848981,1712563840659,-500.0,0.00020999,2]
[321848982,1712563840668,-500.0,0.00020999,2]
[321848983,1712563840678,-500.0,0.00020999,2]
[321848984,1712563840687,-399.52175178,0.00020999,2]
[321848985,1712563840696,-500.0,0.00020999,2]
[321848986,1712563840705,-500.0,0.00020999,2]
[321848987,1712563840714,-500.0,0.00020999,2]
[321848988,1712563840723,-500.0,0.00020999,2]
[321848989,1712563840732,-500.0,0.00020999,2]
[321848990,1712563840742,-500.0,0.00020999,2]
[321848991,1712563840751,-500.0,0.00020999,2]
[321848992,1712563840760,-500.0,0.00020999,2]
[321848993,1712563840769,-500.0,0.00020999,2]
[321848994,1712563840778,-500.0,0.00020999,2]
[321848995,1712563840787,-500.0,0.00020999,2]
[321848996,1712563840796,-500.0,0.00020999,2]
[321848997,1712563840806,-161.49938359,0.00020999,2]
[321848998,1712563840815,-500.0,0.00020999,2]
[321848999,1712563840824,-500.0,0.00020999,2]
[321849000,1712563840834,-500.0,0.00020999,2]
[321849001,1712563840843,-500.0,0.00020999,2]
[321849002,1712563840853,-500.0,0.00020999,2]
[321849003,1712563840862,-500.0,0.00020999,2]
[321849004,1712563840872,-592.55151498,0.00020999,2]
[321849005,1712563840882,-500.0,0.00020999,2]
[321849006,1712563840891,-167.69590977,0.00020999,2]
[321849007,1712563840900,-162.3632674,0.00020999,2]
[321849008,1712563840909,-500.0,0.00020999,2]
[321849009,1712563840921,-500.0,0.00020999,2]
[321849010,1712563840931,-500.0,0.00020999,2]
[321849011,1712563840940,-500.0,0.00020999,2]
[321849012,1712563840950,-500.0,0.00020999,2]
[321849013,1712563840960,-500.0,0.00020999,2]
[321849014,1712563840969,-500.0,0.00020999,2]
[321849015,1712563840979,-500.0,0.00020999,2]
[321849016,1712563840990,-217.15231906,0.00020999,2]
[321849017,1712563841000,-500.0,0.00020999,2]
[321849018,1712563841009,-500.0,0.00020999,2]
[321849019,1712563841193,-500.0,0.00020999,2]
[321849020,1712563841202,-500.0,0.00020999,2]
[321849021,1712563841211,-500.0,0.00020999,2]
[321849022,1712563841220,-500.0,0.00020999,2]
[321849023,1712563841232,-500.0,0.00020999,2]
[321849024,1712563841241,-500.0,0.00020999,2]
[321849025,1712563841250,-500.0,0.00020999,2]
[321849026,1712563841259,-500.0,0.00020999,2]
[321849027,1712563841268,-500.0,0.00020999,2]
[321849028,1712563841277,-500.0,0.00020999,2]
[321849029,1712563841286,-500.0,0.00020999,2]
[321849030,1712563841296,-500.0,0.00020999,2]
[321849031,1712563841305,-500.0,0.00020999,2]
[321849032,1712563841314,-500.0,0.00020999,2]
[321849033,1712563841323,-500.0,0.00020999,2]
[321849034,1712563841332,-500.0,0.00020999,2]
[321849035,1712563841341,-500.0,0.00020999,2]
[321849036,1712563841350,-500.0,0.00020999,2]
[321849037,1712563841358,-500.0,0.00020999,2]
[321849038,1712563841367,-194.88737022,0.00020999,2]
[321849039,1712563841377,-500.0,0.00020999,2]
[321849040,1712563841386,-339.31993299,0.00020999,2]
[321849041,1712563841395,-500.0,0.00020999,2]
[321849042,1712563841404,-500.0,0.00020999,2]
[321849043,1712563841413,-500.0,0.00020999,2]
[321849044,1712563841423,-500.0,0.00020999,2]
[321849045,1712563841432,-500.0,0.00020999,2]
[321849046,1712563841441,-500.0,0.00020999,2]
[321849047,1712563841450,-500.0,0.00020999,2]
[321849048,1712563841459,-500.0,0.00020999,2]
[321849049,1712563841469,-500.0,0.00020999,2]
[321849050,1712563841478,-500.0,0.00020999,2]
[321849051,1712563841487,-458.18,0.00020999,2]
[321849052,1712563841498,-336.43383,0.00020999,2]
[321849053,1712563841510,-500.0,0.00020999,2]
[321849054,1712563841519,-500.0,0.00020999,2]
[321849055,1712563841528,-500.0,0.00020999,2]
[321849056,1712563841537,-560.48853887,0.00020999,2]
[321849057,1712563841547,-500.0,0.00020999,2]
[321849058,1712563841556,-500.0,0.00020999,2]
[321849059,1712563841565,-615.73,0.00020999,2]
[321849060,1712563841574,-500.0,0.00020999,2]
[321849061,1712563841586,-500.0,0.00020999,2]
[321849062,1712563841597,-615.73,0.00020999,2]
[321849063,1712563841606,-634.78120605,0.00020999,2]
[321849064,1712563841615,-615.73,0.00020999,2]
[321849065,1712563841624,-615.73,0.00020999,2]
[321849066,1712563841634,-615.73,0.00020999,2]
[321849067,1712563841643,-615.73,0.00020999,2]
[321849068,1712563841653,-615.73,0.00020999,2]
[321849069,1712563841663,-615.73,0.00020999,2]
[321849070,1712563841672,-500.0,0.00020999,2]
[321849071,1712563841682,-615.73,0.00020999,2]
[321849072,1712563841692,-500.0,0.00020999,2]
[321849073,1712563841702,-500.0,0.00020999,2]
[321849074,1712563841711,-615.73,0.00020999,2]
[321849075,1712563841721,-500.0,0.00020999,2]
[321849076,1712563841730,-615.73,0.00020999,2]
[321849077,1712563841739,-500.0,0.00020999,2]
[321849078,1712563841749,-615.73,0.00020999,2]
[321849079,1712563841758,-229.28522858,0.00020999,2]
[321849080,1712563841767,-615.73,0.00020999,2]
[321849081,1712563841776,-615.73,0.00020999,2]
[321849082,1712563841785,-615.73,0.00020999,2]
[321849083,1712563841794,-240.36969865,0.00020999,2]
[321849084,1712563841804,-615.73,0.00020999,2]
[321849085,1712563841813,-615.73,0.00020999,2]
[321849086,1712563841822,-615.73,0.00020999,2]
[321849087,1712563841833,-615.73,0.00020999,2]
[321849088,1712563841842,-615.73,0.00020999,2]
[321849089,1712563841852,-615.73,0.00020999,2]
[321849090,1712563841861,-615.96864831,0.00020999,2]
[321849091,1712563841870,-500.0,0.00020999,2]
[321849092,1712563841879,-526.32590144,0.00020999,2]
[321849093,1712563841889,-500.0,0.00020999,2]
[321849094,1712563841898,-3771.82,0.00020999,2]
[321849095,1712563841907,-3771.82,0.00020999,2]
[321849096,1712563841916,-3771.82,0.00020999,2]
[321849097,1712563841925,-3771.82,0.00020999,2]
[321849098,1712563841934,-3771.82,0.00020999,2]
[321849099,1712563841943,-3771.82,0.00020999,2]
[321849100,1712563841952,-3771.82,0.00020999,2]
[321849101,1712563841961,-516.50966675,0.00020999,2]
[321849102,1712563841993,-3255.31033325,0.00020999,2]
[321849103,1712563842003,-3771.82,0.00020999,2]
[321849104,1712563842012,-500.0,0.00020999,2]
[321849105,1712563842021,-3771.82,0.00020999,2]
[321849106,1712563842032,-500.0,0.00020999,2]
[321849107,1712563842041,-500.0,0.00020999,2]
[321849108,1712563842051,-3771.82,0.00020999,2]
[321849109,1712563842060,-593.97,0.00020999,2]
[321849110,1712563842069,-3771.82,0.00020999,2]
[321849111,1712563842079,-3771.82,0.00020999,2]
[321849112,1712563842088,-3771.82,0.00020999,2]
[321849113,1712563842097,-3771.82,0.00020999,2]
[321849114,1712563842107,-3771.82,0.00020999,2]
[321849115,1712563842116,-3771.82,0.00020999,2]
[321849116,1712563842126,-3771.82,0.00020999,2]
[321849117,1712563842135,-3771.82,0.00020999,2]
[321849118,1712563842145,-3771.82,0.00020999,2]
[321849119,1712563842154,-3771.82,0.00020999,2]
[321849120,1712563842163,-3771.95700055,0.00020999,2]
[321849121,1712563842173,-514.52,0.00020999,2]
[321849122,1712563842182,-500.0,0.00020999,2]
[321849123,1712563842192,-500.0,0.00020999,2]
[321849124,1712563842201,-514.52,0.00020999,2]
[321849125,1712563842211,-500.0,0.00020999,2]
[321849126,1712563842221,-514.52,0.00020999,2]
[321849127,1712563842230,-500.0,0.00020999,2]
[321849128,1712563842240,-514.52,0.00020999,2]
[321849129,1712563842251,-500.0,0.00020999,2]
[321849130,1712563842261,-514.52,0.00020999,2]
[321849131,1712563842271,-500.0,0.00020999,2]
[321849132,1712563842282,-514.52,0.00020999,2]
[321849133,1712563842292,-463.51361599,0.00020999,2]
[321849134,1712563842303,-514.52,0.00020999,2]
[321849135,1712563842316,-514.52,0.00020999,2]
[321849136,1712563842327,-514.52,0.00020999,2]
[321849137,1712563842337,-359.65920291,0.00020999,2]
[321849138,1712563842349,-514.52,0.00020999,2]
[321849139,1712563842361,-514.52,0.00020999,2]
[321849140,1712563842372,-514.52,0.00020999,2]
[321849141,1712563842383,-514.52,0.00020999,2]
[321849142,1712563842394,-514.52,0.00020999,2]
[321849143,1712563842405,-514.52,0.00020999,2]
[321849144,1712563842417,-514.52,0.00020999,2]
[321849145,1712563842428,-514.52,0.00020999,2]
[321849146,1712563842438,-17.99613082,0.00020999,2]
[321849147,1712563842468,-496.52386918,0.00020999,2]
[321849148,1712563842478,-514.52,0.00020999,2]
[321849149,1712563842487,-514.52,0.00020999,2]
[321849150,1712563842498,-514.52,0.00020999,2]
[321849151,1712563842509,-514.58,0.00020999,2]
[321849152,1712563842519,-500.0,0.00020999,2]
[321849154,1712563842528,-500.0,0.00020999,2]
[321849156,1712563842537,-500.0,0.00020999,2]
[321849158,1712563842547,-500.0,0.00020999,2]
[321849159,1712563842556,-500.0,0.00020999,2]
[321849161,1712563842565,-500.0,0.00020999,2]
[321849163,1712563842575,-500.0,0.00020999,2]
[321849165,1712563842585,-500.0,0.00020999,2]
[321849167,1712563842594,-500.0,0.00020999,2]
[321849169,1712563842603,-46.53613082,0.00020999,2]
[321849178,1712563842687,-381.3265845,0.000209,2]
[321849180,1712563842699,-435.43733478,0.000209,2]
[321849182,1712563842708,-95.8040803,0.00020999,2]
[321849184,1712563842719,-357.65978888,0.00020999,2]
[321849186,1712563842729,-500.0,0.00020999,2]
[321849188,1712563842738,-500.0,0.00020999,2]
[321849189,1712563842748,-500.0,0.00020999,2]
[321849190,1712563842757,-500.0,0.00020999,2]
[321849191,1712563842767,-500.0,0.00020999,2]
[321849192,1712563842776,-500.0,0.00020999,2]
[321849193,1712563842786,-500.0,0.00020999,2]
[321849194,1712563842795,-341.05828387,0.00020999,2]
[321849195,1712563842805,-500.0,0.00020999,2]
[321849196,1712563842814,-500.0,0.00020999,2]
[321849197,1712563842824,-244.36,0.00020999,2]
[321849198,1712563842834,-500.0,0.00020999,2]
[321849199,1712563842843,-500.0,0.00020999,2]
[321849200,1712563842853,-500.0,0.00020999,2]
[321849201,1712563842862,-500.0,0.00020999,2]
[321849202,1712563842871,-500.0,0.00020999,2]
[321849203,1712563842881,-500.0,0.00020999,2]
[321849204,1712563842890,-500.0,0.00020999,2]
[321849206,1712563842900,-500.0,0.00020999,2]
[321849208,1712563842909,-462.49805671,0.00020999,2]
[321849211,1712563842986,-37.50194329,0.00020999,2]
[321849212,1712563842996,-500.0,0.00020999,2]
[321849213,1712563843005,-500.0,0.00020999,2]
[321849214,1712563843014,-500.0,0.00020999,2]
[321849215,1712563843023,-287.88,0.00020999,2]
[321849216,1712563843032,-500.0,0.00020999,2]
[321849217,1712563843041,-500.0,0.00020999,2]
[321849218,1712563843051,-500.0,0.00020999,2]
[321849219,1712563843060,-500.0,0.00020999,2]
[321849220,1712563843070,-500.0,0.00020999,2]
[321849221,1712563843081,-500.0,0.00020999,2]
[321849222,1712563843091,-500.0,0.00020999,2]
[321849223,1712563843101,-500.0,0.00020999,2]
[321849224,1712563843115,-500.0,0.00020999,2]
[321849225,1712563843126,-500.0,0.00020999,2]
[321849226,1712563843138,-500.0,0.00020999,2]
[321849227,1712563843150,-500.0,0.00020999,2]
[321849228,1712563843161,-500.0,0.00020999,2]
[321849229,1712563843172,-500.0,0.00020999,2]
[321849230,1712563843184,-500.0,0.00020999,2]
[321849231,1712563843195,-500.0,0.00020999,2]
[321849232,1712563843207,-460.3,0.00020999,2]
[321849233,1712563843224,-500.0,0.00020999,2]
[321849234,1712563843236,-194.4,0.00020999,2]
[321849235,1712563843252,-1836.2,0.00020999,2]
[321849236,1712563843264,-1836.2,0.00020999,2]
[321849237,1712563843275,-1836.2,0.00020999,2]
[321849238,1712563843287,-1836.2,0.00020999,2]
[321849239,1712563843297,-500.0,0.00020999,2]
[321849240,1712563843308,-1836.2,0.00020999,2]
[321849241,1712563843322,-1836.2,0.00020999,2]
[321849242,1712563843333,-1836.2,0.00020999,2]
[321849243,1712563843344,-1836.2,0.00020999,2]
[321849244,1712563843355,-1836.2,0.00020999,2]
[321849245,1712563843365,-424.76581671,0.00020999,2]
[321849246,1712563843576,-1411.43418329,0.00020999,2]
[321849247,1712563843587,-1836.2,0.00020999,2]
[321849248,1712563843600,-1836.2,0.00020999,2]
[321849250,1712563843612,-1836.2,0.00020999,2]
[321849252,1712563843623,-1836.2,0.00020999,2]
[321849253,1712563843634,-500.0,0.00020999,2]
[321849255,1712563843645,-500.0,0.00020999,2]
[321849257,1712563843658,-1836.2,0.00020999,2]
[321849259,1712563843669,-462.88931085,0.00020999,2]
[321849261,1712563843680,-1836.2,0.00020999,2]
[321849263,1712563843691,-1836.2,0.00020999,2]
[321849265,1712563843701,-1836.2,0.00020999,2]
[321849267,1712563843712,-1836.2,0.00020999,2]
[321849269,1712563843723,-1836.2,0.00020999,2]
[321849270,1712563843736,-1443.27650584,0.00020999,2]
[321849286,1712563843898,-392.92349416,0.00020999,2]
[321849288,1712563843908,-1836.39199905,0.00020999,2]
[321849290,1712563843920,-500.0,0.00020999,2]
[321849292,1712563843931,-500.0,0.00020999,2]
[321849294,1712563843942,-500.0,0.00020999,2]
[321849296,1712563843953,-500.0,0.00020999,2]
[321849298,1712563843965,-500.0,0.00020999,2]
[321849299,1712563843976,-500.0,0.00020999,2]
[321849300,1712563843987,-227.53,0.00020999,2]
[321849301,1712563843999,-500.0,0.00020999,2]
[321849302,1712563844010,-500.0,0.00020999,2]
[321849303,1712563844021,-500.0,0.00020999,2]
[321849304,1712563844032,-500.0,0.00020999,2]
[321849305,1712563844042,-500.0,0.00020999,2]
[321849306,1712563844053,-500.0,0.00020999,2]
[321849307,1712563844064,-500.0,0.00020999,2]
[321849308,1712563844074,-500.0,0.00020999,2]
[321849309,1712563844085,-500.0,0.00020999,2]
[321849310,1712563844097,-500.0,0.00020999,2]
[321849311,1712563844108,-1456.78,0.00020999,2]
[321849312,1712563844119,-1456.78,0.00020999,2]
[321849313,1712563844130,-1456.78,0.00020999,2]
[321849314,1712563844144,-1456.78,0.00020999,2]
[321849315,1712563844154,-1456.78,0.00020999,2]
[321849316,1712563844166,-500.0,0.00020999,2]
[321849317,1712563844176,-1456.78,0.00020999,2]
[321849318,1712563844187,-1456.78,0.00020999,2]
[321849319,1712563844197,-1456.78,0.00020999,2]
[321849320,1712563844208,-1331.26223692,0.00020999,2]
[321849321,1712563844222,-125.51776308,0.00020999,2]
[321849322,1712563844233,-1456.78,0.00020999,2]
[321849323,1712563844248,-1456.78,0.00020999,2]
[321849324,1712563844258,-1456.78,0.00020999,2]
[321849325,1712563844269,-1456.78,0.00020999,2]
[321849326,1712563844279,-1456.78,0.00020999,2]
[321849327,1712563844289,-1456.78,0.00020999,2]
[321849328,1712563844299,-1456.78,0.00020999,2]
[321849329,1712563844310,-1456.78,0.00020999,2]
[321849330,1712563844320,-1456.78,0.00020999,2]
[321849331,1712563844330,-1456.78,0.00020999,2]
[321849332,1712563844341,-1456.78,0.00020999,2]
[321849333,1712563844352,-500.0,0.00020999,2]
[321849334,1712563844362,-1456.78,0.00020999,2]
[321849335,1712563844372,-500.0,0.00020999,2]
[321849336,1712563844383,-1456.9679562,0.00020999,2]
[321849337,1712563844393,-500.0,0.00020999,2]
[321849338,1712563844404,-622.18309481,0.00020999,2]
[321849339,1712563844414,-500.0,0.00020999,2]
[321849340,1712563844425,-500.0,0.00020999,2]
[321849341,1712563844436,-500.0,0.00020999,2]
[321849342,1712563844446,-299.5386236,0.00020999,2]
[321849343,1712563844457,-500.0,0.00020999,2]
[321849344,1712563844468,-500.0,0.00020999,2]
[321849345,1712563844479,-500.0,0.00020999,2]
[321849346,1712563844490,-500.0,0.00020999,2]
[321849347,1712563844505,-500.0,0.00020999,2]
[321849348,1712563844517,-500.0,0.00020999,2]
[321849349,1712563844528,-500.0,0.00020999,2]
[321849350,1712563844539,-500.0,0.00020999,2]
[321849351,1712563844550,-500.0,0.00020999,2]
[321849352,1712563844561,-500.0,0.00020999,2]
[321849353,1712563844571,-500.0,0.00020999,2]
[321849354,1712563844582,-500.0,0.00020999,2]
[321849355,1712563844593,-500.0,0.00020999,2]
[321849356,1712563844604,-500.0,0.00020999,2]
[321849357,1712563844616,-500.0,0.00020999,2]
[321849358,1712563844626,-500.0,0.00020999,2]
[321849359,1712563844637,-500.0,0.00020999,2]
[321849360,1712563844647,-500.0,0.00020999,2]
[321849361,1712563844658,-380.28,0.00020999,2]
[321849362,1712563844669,-10758.35920073,0.00021,2]
[321849363,1712563844691,-3391.68804941,0.00021,2]
[321849364,1712563844703,-3703.10927612,0.00021,2]
[321849365,1712563844732,-763.89008112,0.00021,2]
[321849370,1712563847717,-1255.40339473,0.000209,2]
[321849371,1712563847727,-46815.94152508,0.00021,2]
[321849372,1712563847739,-5366.13,0.00021,2]
[321849373,1712563847777,-4107.74775906,0.00021,2]
[321849374,1712563847789,-958.22545805,0.00021,2]
[321849375,1712563847800,-502.2131969,0.00021,2]
[321849376,1712563847892,-213068.25261693,0.00021,2]
[321849383,1712564070907,1681.59,0.000297,120]
[321849396,1712564286819,-210.0,0.00018542,2]
[321849397,1712564286840,-4867.39036,0.00019727,2]
[321849398,1712564286861,-162.4,0.00019827,2]
[321849399,1712564286883,-200.0,0.00019862,2]
[321849400,1712564286905,-500.0,0.00019968,2]
[321849401,1712564286926,-500.00000004,0.0002,2]
[321849402,1712564286950,-176.83,0.00020006,2]
[321849403,1712564286973,-832.87,0.00020067,2]
[321849404,1712564286999,-8033.37154431,0.000201,2]
[321849405,1712564287023,-150.0,0.000205,2]
[321849406,1712564287046,-546.0,0.00020548,2]
[321849407,1712564287070,-150.0,0.00020557,2]
[321849408,1712564287092,-206.46,0.00020681,2]
[321849409,1712564287115,-225.71857,0.0002079,2]
[321849410,1712564287137,-183.0422217,0.00020799,2]
[321849411,1712564287160,-151.93586468,0.00020799,2]
[321849412,1712564287182,-978.15953745,0.00020805,2]
[321849413,1712564287206,-210.0,0.00020806,2]
[321849414,1712564287228,-183.04222164,0.0002081,2]
[321849415,1712564287254,-183.04222164,0.00020821,2]
[321849416,1712564287276,-183.04222164,0.00020833,2]
[321849417,1712564287298,-183.04222164,0.00020844,2]
[321849418,1712564287319,-183.04222164,0.00020855,2]
[321849419,1712564287340,-183.04222164,0.00020866,2]
[321849420,1712564287362,-183.04222164,0.00020878,2]
[321849421,1712564287382,-183.04222164,0.00020889,2]
[321849422,1712564287404,-41936.1666,0.00020897,2]
[321849423,1712564287425,-500.0,0.00020898,2]
[321849424,1712564287445,-71971.7449,0.00020899,2]
[321849425,1712564287465,-1000.0,0.00020899,2]
[321849426,1712564287486,-7500.0,0.00020899,2]
[321849427,1712564287511,-8951.8822,0.00020899,2]
[321849428,1712564287533,-347.82635356,0.00020899,2]
[321849429,1712564287556,-168.1097766,0.00020899,2]
[321849430,1712564287578,-168.1097766,0.000209,2]
[321849431,1712564287599,-347.82635354,0.000209,2]
[321849432,1712564287621,-168.1097766,0.000209,2]
[321849433,1712564287642,-168.1097766,0.000209,2]
[321849434,1712564287665,-10178.31813677,0.000209,2]
[321849435,1712564287686,-1000.0,0.000209,2]
[321849436,1712564287714,-168.1097766,0.000209,2]
[321849437,1712564287736,-151.93586468,0.000209,2]
[321849438,1712564287759,-6506.14900585,0.000209,2]
[321849439,1712564287780,-183.04222164,0.000209,2]
[321849440,1712564287801,-155.52113393,0.000209,2]
[321849441,1712564287822,-347.82635354,0.000209,2]
[321849442,1712564287842,-191.04956329,0.00020996,2]
[321849443,1712564287864,-58933.21939424,0.00020996,2]
[321849444,1712564287884,-155.54591448,0.00020997,2]
[321849445,1712564287904,-9098.22864823,0.00020997,2]
[321849446,1712564288144,-263.97306041,0.00020997,2]
[321849447,1712564288167,-255.31063111,0.00020997,2]
[321849448,1712564288189,-155.46761263,0.00020997,2]
[321849449,1712564288212,-243.41843626,0.00020997,2]
[321849450,1712564288235,-1178.42981056,0.00020997,2]
[321849451,1712564288259,-472.51322209,0.00020997,2]
[321849452,1712564288281,-155.07513468,0.00020997,2]
[321849453,1712564288302,-409.47715075,0.00020997,2]
[321849454,1712564288323,-360.16371783,0.00020997,2]
[321849455,1712564288343,-812.08949876,0.00020997,2]
[321849456,1712564288365,-347.73032734,0.00020997,2]
[321849457,1712564288386,-4732.47927122,0.00020997,2]
[321849458,1712564288409,-200.0,0.00020997,2]
[321849459,1712564288429,-161.0358996,0.00020997,2]
[321849460,1712564288449,-653.99842488,0.00020997,2]
[321849461,1712564288470,-156.80867088,0.00020997,3]
[321849462,1712564288491,-500.0,0.00020997,2]
[321849463,1712564288513,-552.22700734,0.00020997,2]
[321849464,1712564288535,-500.0,0.00020997,2]
[321849465,1712564288555,-488.46,0.00020997,2]
[321849466,1712564288575,-500.0,0.00020997,2]
[321849467,1712564288596,-500.0,0.00020997,2]
[321849468,1712564288617,-500.0,0.00020997,2]
[321849469,1712564288638,-367.34088937,0.00020997,2]
[321849470,1712564288660,-500.0,0.00020997,2]
[321849471,1712564288680,-487.23,0.00020997,2]
[321849472,1712564288703,-524.77273207,0.00020997,2]
[321849473,1712564288724,-500.0,0.00020997,2]
[321849474,1712564288749,-500.0,0.00020997,2]
[321849475,1712564288769,-500.0,0.00020997,2]
[321849476,1712564288794,-500.0,0.00020997,2]
[321849477,1712564288815,-500.0,0.00020997,2]
[321849478,1712564288837,-500.0,0.00020997,2]
[321849479,1712564288859,-500.0,0.00020997,2]
[321849480,1712564288881,-500.0,0.00020997,2]
[321849481,1712564288903,-500.0,0.00020997,2]
[321849482,1712564288925,-500.0,0.00020997,2]
[321849483,1712564288945,-500.0,0.00020997,2]
[321849484,1712564288966,-500.0,0.00020997,2]
[321849485,1712564288988,-500.0,0.00020997,2]
[321849486,1712564289012,-472.92089538,0.00020997,2]
[321849487,1712564289033,-595.08,0.00020997,2]
[321849488,1712564289053,-500.0,0.00020997,2]
[321849489,1712564289074,-500.0,0.00020997,2]
[321849490,1712564289096,-500.0,0.00020997,2]
[321849491,1712564289118,-427.01,0.00020997,2]
[321849492,1712564289140,-500.0,0.00020997,2]
[321849493,1712564289164,-500.0,0.00020997,2]
[321849494,1712564289187,-500.0,0.00020997,2]
[321849495,1712564289212,-500.0,0.00020997,2]
[321849496,1712564289237,-500.0,0.00020997,2]
[321849497,1712564289270,-150.0,0.00020997,2]
[321849498,1712564289297,-500.0,0.00020997,2]
[321849499,1712564289323,-500.0,0.00020997,2]
[321849500,1712564289347,-500.0,0.00020997,2]
[321849501,1712564289372,-500.0,0.00020997,2]
[321849502,1712564289395,-384.5,0.00020997,2]
[321849503,1712564289420,-500.0,0.00020997,2]
[321849504,1712564289442,-500.0,0.00020997,2]
[321849505,1712564289464,-519.74931787,0.00020997,2]
[321849506,1712564289487,-348.02048506,0.00020997,2]
[321849507,1712564289515,-500.0,0.00020997,2]
[321849508,1712564289536,-500.0,0.00020997,2]
[321849509,1712564289558,-500.0,0.00020997,2]
[321849510,1712564289578,-224.41295753,0.00020997,2]
[321849511,1712564289601,-240.86495456,0.00020997,2]
[321849512,1712564289623,-500.0,0.00020997,2]
[321849513,1712564289645,-546.5,0.00020997,2]
[321849514,1712564289669,-500.0,0.00020997,2]
[321849515,1712564289692,-500.0,0.00020997,2]
[321849516,1712564289716,-500.0,0.00020997,2]
[321849517,1712564289737,-500.0,0.00020997,2]
[321849518,1712564289762,-1495.89,0.00020997,2]
[321849519,1712564289784,-500.0,0.00020997,2]
[321849520,1712564289806,-500.0,0.00020997,2]
[321849521,1712564289827,-521.37,0.00020997,2]
[321849522,1712564289849,-150.0,0.00020997,2]
[321849523,1712564289871,-500.0,0.00020997,2]
[321849524,1712564289892,-500.0,0.00020997,2]
[321849525,1712564289913,-500.0,0.00020997,2]
[321849526,1712564289934,-500.0,0.00020997,2]
[321849527,1712564289954,-500.0,0.00020997,2]
[321849528,1712564289976,-500.0,0.00020997,2]
[321849529,1712564290001,-500.0,0.00020997,2]
[321849530,1712564290021,-511.66545764,0.00020997,2]
[321849531,1712564290041,-500.0,0.00020997,2]
[321849532,1712564290062,-578.91324608,0.00020997,2]